[Event "Late-Titled-Tuesday-Blitz-September-26-2023"]
[Site "Chess.com"]
[Date "2023.09.26"]
[Round "6"]
[White "victormago"]
[Black "Sokoloco"]
[Result "1/2-1/2"]
[WhiteElo "2532"]
[BlackElo "2694"]
[TimeControl "180+1"]
[EndTime "15:05:19 PDT"]
[Termination "Game drawn by repetition"]

1. d4 {[%clk 0:02:52.6]} 1... d5 {[%clk 0:02:59.9]} 2. c4 {[%clk 0:02:51.9]}
2... e6 {[%clk 0:02:59.9]} 3. Nc3 {[%clk 0:02:51.9]} 3... c6 {[%clk 0:03:00.2]}
4. e3 {[%clk 0:02:50.1]} 4... f5 {[%clk 0:03:00]} 5. g4 {[%clk 0:02:49.4]} 5...
Nf6 {[%clk 0:02:45]} 6. gxf5 {[%clk 0:02:47.4]} 6... exf5 {[%clk 0:02:45.9]} 7.
cxd5 {[%clk 0:02:47.2]} 7... Nxd5 {[%clk 0:02:42.5]} 8. Bg2 {[%clk 0:02:45.8]}
8... Bb4 {[%clk 0:02:29.5]} 9. Bd2 {[%clk 0:02:43.9]} 9... Bxc3 {[%clk
0:02:25.1]} 10. bxc3 {[%clk 0:02:40.2]} 10... O-O {[%clk 0:02:25.2]} 11. Nf3
{[%clk 0:02:38.1]} 11... Nd7 {[%clk 0:02:21]} 12. O-O {[%clk 0:02:36.9]} 12...
N7f6 {[%clk 0:02:16]} 13. Ne5 {[%clk 0:02:29.5]} 13... Ne4 {[%clk 0:02:15.1]}
14. c4 {[%clk 0:02:26.6]} 14... Ndf6 {[%clk 0:01:58.3]} 15. Bb4 {[%clk
0:02:22.1]} 15... Re8 {[%clk 0:01:48]} 16. f3 {[%clk 0:02:13.6]} 16... Nd6
{[%clk 0:01:46.2]} 17. Qb3 {[%clk 0:02:00.6]} 17... Nf7 {[%clk 0:01:46]} 18.
Nxf7 {[%clk 0:01:56.3]} 18... Kxf7 {[%clk 0:01:46.9]} 19. Rae1 {[%clk
0:01:51.3]} 19... Be6 {[%clk 0:01:41.5]} 20. Qc3 {[%clk 0:01:51]} 20... a5
{[%clk 0:01:26]} 21. Ba3 {[%clk 0:01:50.4]} 21... b5 {[%clk 0:01:26.4]} 22. cxb5
{[%clk 0:01:46.7]} 22... cxb5 {[%clk 0:01:27.3]} 23. Bc5 {[%clk 0:01:36.7]}
23... Bxa2 {[%clk 0:01:20]} 24. e4 {[%clk 0:01:36.8]} 24... Kg8 {[%clk
0:01:10.7]} 25. d5 {[%clk 0:01:29.2]} 25... Rc8 {[%clk 0:01:06.2]} 26. Qd4
{[%clk 0:01:25]} 26... Nd7 {[%clk 0:00:59.2]} 27. Bd6 {[%clk 0:01:18.5]} 27...
Bc4 {[%clk 0:00:31.2]} 28. Rf2 {[%clk 0:01:12.6]} 28... Qb6 {[%clk 0:00:31.8]}
29. Qxb6 {[%clk 0:01:03.1]} 29... Nxb6 {[%clk 0:00:32.7]} 30. Ra1 {[%clk
0:00:48]} 30... a4 {[%clk 0:00:17.1]} 31. Bh3 {[%clk 0:00:45.4]} 31... g6 {[%clk
0:00:17.5]} 32. exf5 {[%clk 0:00:45.5]} 32... Nxd5 {[%clk 0:00:12]} 33. fxg6
{[%clk 0:00:45.2]} 33... Rc6 {[%clk 0:00:10]} 34. gxh7+ {[%clk 0:00:42.9]} 34...
Kxh7 {[%clk 0:00:10.9]} 35. Bg3 {[%clk 0:00:41.4]} 35... Ne3 {[%clk 0:00:07.6]}
36. Bd7 {[%clk 0:00:40.2]} 36... Rcc8 {[%clk 0:00:04.9]} 37. Bxc8 {[%clk
0:00:33.9]} 37... Rxc8 {[%clk 0:00:05]} 38. Bf4 {[%clk 0:00:32.9]} 38... Nd5
{[%clk 0:00:05.4]} 39. Bd6 {[%clk 0:00:32.3]} 39... Bb3 {[%clk 0:00:05.5]} 40.
Rd2 {[%clk 0:00:30.9]} 40... Rc6 {[%clk 0:00:03.9]} 41. Be5 {[%clk 0:00:29.3]}
41... b4 {[%clk 0:00:03.5]} 42. f4 {[%clk 0:00:24.1]} 42... a3 {[%clk
0:00:03.5]} 43. Kf2 {[%clk 0:00:19.9]} 43... a2 {[%clk 0:00:02.6]} 44. Rdxa2
{[%clk 0:00:19.6]} 44... Bxa2 {[%clk 0:00:03.5]} 45. Rxa2 {[%clk 0:00:20.2]}
45... Rb6 {[%clk 0:00:02.9]} 46. Rb2 {[%clk 0:00:19.9]} 46... b3 {[%clk
0:00:03]} 47. Ke2 {[%clk 0:00:18.9]} 47... Rb5 {[%clk 0:00:03.4]} 48. Kd3 {[%clk
0:00:18.5]} 48... Nb6 {[%clk 0:00:04.2]} 49. Bd4 {[%clk 0:00:16.1]} 49... Na4
{[%clk 0:00:03.9]} 50. Rb1 {[%clk 0:00:16.5]} 50... Rb7 {[%clk 0:00:03.9]} 51.
Kc4 {[%clk 0:00:15.9]} 51... b2 {[%clk 0:00:04.1]} 52. Kd3 {[%clk 0:00:14.5]}
52... Rd7 {[%clk 0:00:04.5]} 53. Ke4 {[%clk 0:00:12.1]} 53... Kg6 {[%clk
0:00:03.4]} 54. Bxb2 {[%clk 0:00:10.5]} 54... Rb7 {[%clk 0:00:03]} 55. Rg1+
{[%clk 0:00:10.7]} 55... Kh5 {[%clk 0:00:03.7]} 56. Be5 {[%clk 0:00:11]} 56...
Nc5+ {[%clk 0:00:03.3]} 57. Kf5 {[%clk 0:00:10.8]} 57... Rf7+ {[%clk 0:00:01.6]}
58. Bf6 {[%clk 0:00:11.2]} 58... Nd7 {[%clk 0:00:02]} 59. Rg5+ {[%clk
0:00:10.4]} 59... Kh6 {[%clk 0:00:02.5]} 60. Rg6+ {[%clk 0:00:09.6]} 60... Kh5
{[%clk 0:00:03.2]} 61. Rg5+ {[%clk 0:00:09.2]} 61... Kh6 {[%clk 0:00:03.5]} 62.
Rg6+ {[%clk 0:00:09.6]} 62... Kh5 {[%clk 0:00:04.1]} 63. h4 {[%clk 0:00:09.5]}
63... Rf8 {[%clk 0:00:03]} 64. Ke6 {[%clk 0:00:07.9]} 64... Nc5+ {[%clk
0:00:02.4]} 65. Kf5 {[%clk 0:00:07.7]} 65... Nd7 {[%clk 0:00:02.6]} 66. Rg5+
{[%clk 0:00:07.8]} 66... Kh6 {[%clk 0:00:03.1]} 67. Rg6+ {[%clk 0:00:07.9]}
67... Kh5 {[%clk 0:00:03.8]} 1/2-1/2

[Event "Late-Titled-Tuesday-Blitz-September-26-2023"]
[Site "Chess.com"]
[Date "2023.09.26"]
[Round "6"]
[White "Iball95"]
[Black "Thjop"]
[Result "1/2-1/2"]
[WhiteElo "2752"]
[BlackElo "2610"]
[TimeControl "180+1"]
[EndTime "15:05:22 PDT"]
[Termination "Game drawn by repetition"]

1. e4 {[%clk 0:03:00]} 1... e6 {[%clk 0:02:59.1]} 2. d4 {[%clk 0:03:00]} 2... d5
{[%clk 0:02:59.5]} 3. Nc3 {[%clk 0:03:00.5]} 3... Bb4 {[%clk 0:02:59]} 4. exd5
{[%clk 0:02:59.9]} 4... exd5 {[%clk 0:02:59.1]} 5. Bd3 {[%clk 0:03:00.1]} 5...
c6 {[%clk 0:02:58.5]} 6. Nf3 {[%clk 0:02:59.8]} 6... Bg4 {[%clk 0:02:57.3]} 7.
O-O {[%clk 0:02:58.8]} 7... Ne7 {[%clk 0:02:57.5]} 8. h3 {[%clk 0:02:58.9]} 8...
Bh5 {[%clk 0:02:57.3]} 9. g4 {[%clk 0:02:53.8]} 9... Bg6 {[%clk 0:02:57.3]} 10.
Ne5 {[%clk 0:02:54.3]} 10... f6 {[%clk 0:02:49.8]} 11. Nxg6 {[%clk 0:02:50.7]}
11... hxg6 {[%clk 0:02:49.8]} 12. Qf3 {[%clk 0:02:46.5]} 12... Nd7 {[%clk
0:02:37.6]} 13. Re1 {[%clk 0:02:41.9]} 13... Nf8 {[%clk 0:02:25.7]} 14. Bf4
{[%clk 0:02:34.1]} 14... Bd6 {[%clk 0:02:21.2]} 15. Re3 {[%clk 0:02:22.6]} 15...
Bxf4 {[%clk 0:02:04]} 16. Qxf4 {[%clk 0:02:23.2]} 16... g5 {[%clk 0:02:04.2]}
17. Qg3 {[%clk 0:02:10.6]} 17... Kf7 {[%clk 0:02:00.7]} 18. f4 {[%clk 0:01:49]}
18... gxf4 {[%clk 0:01:58.8]} 19. Qxf4 {[%clk 0:01:49.9]} 19... Nfg6 {[%clk
0:01:55.8]} 20. Qf2 {[%clk 0:01:46.2]} 20... Qb6 {[%clk 0:01:44.4]} 21. Na4
{[%clk 0:01:41.2]} 21... Qc7 {[%clk 0:01:37.9]} 22. Rae1 {[%clk 0:01:39.7]}
22... Rae8 {[%clk 0:01:35.7]} 23. Nc5 {[%clk 0:01:36.7]} 23... Nf4 {[%clk
0:01:31.4]} 24. Bf1 {[%clk 0:01:05.9]} 24... b6 {[%clk 0:01:22.4]} 25. Ne6
{[%clk 0:00:58]} 25... Nxe6 {[%clk 0:01:21.7]} 26. Rxe6 {[%clk 0:00:58.9]} 26...
Ng6 {[%clk 0:01:20.4]} 27. Rxe8 {[%clk 0:00:22.5]} 27... Rxe8 {[%clk 0:01:19.3]}
28. Rxe8 {[%clk 0:00:21]} 28... Kxe8 {[%clk 0:01:20.2]} 29. Qe3+ {[%clk
0:00:16.7]} 29... Kf7 {[%clk 0:01:18.9]} 30. c3 {[%clk 0:00:13.9]} 30... Nf4
{[%clk 0:01:13.2]} 31. Kf2 {[%clk 0:00:13.7]} 31... g5 {[%clk 0:01:11.9]} 32. a3
{[%clk 0:00:11]} 32... a5 {[%clk 0:01:11.1]} 33. Kg1 {[%clk 0:00:10.7]} 33...
Qd6 {[%clk 0:01:08.8]} 34. Kf2 {[%clk 0:00:10.6]} 34... Qf8 {[%clk 0:00:53.3]}
35. Kg1 {[%clk 0:00:10.4]} 35... Qh8 {[%clk 0:00:52.4]} 36. Kf2 {[%clk
0:00:10.2]} 36... Qh4+ {[%clk 0:00:50.7]} 37. Qg3 {[%clk 0:00:11.1]} 37... Qh8
{[%clk 0:00:48.8]} 38. Qe3 {[%clk 0:00:11.4]} 38... Qb8 {[%clk 0:00:48.5]} 39.
Kg1 {[%clk 0:00:11.7]} 39... Qd6 {[%clk 0:00:44.7]} 40. Kf2 {[%clk 0:00:11.8]}
40... c5 {[%clk 0:00:45]} 41. Kg1 {[%clk 0:00:11.8]} 41... c4 {[%clk 0:00:41.7]}
42. Kf2 {[%clk 0:00:10.9]} 42... b5 {[%clk 0:00:42.1]} 43. Kg1 {[%clk
0:00:04.2]} 43... b4 {[%clk 0:00:42.2]} 44. axb4 {[%clk 0:00:05.1]} 44... axb4
{[%clk 0:00:42.5]} 45. Kf2 {[%clk 0:00:04.9]} 45... Qb6 {[%clk 0:00:38.3]} 46.
Kg1 {[%clk 0:00:04.5]} 46... Qa5 {[%clk 0:00:35.6]} 47. h4 {[%clk 0:00:04.6]}
47... Ne6 {[%clk 0:00:20.5]} 48. hxg5 {[%clk 0:00:04.4]} 48... Nxg5 {[%clk
0:00:18.7]} 49. Bg2 {[%clk 0:00:05.1]} 49... Qa1+ {[%clk 0:00:12.4]} 50. Kh2
{[%clk 0:00:04.2]} 50... Qxb2 {[%clk 0:00:12.7]} 51. cxb4 {[%clk 0:00:05]} 51...
c3 {[%clk 0:00:11.4]} 52. b5 {[%clk 0:00:04.7]} 52... c2 {[%clk 0:00:10]} 53.
Bxd5+ {[%clk 0:00:05.3]} 53... Kg6 {[%clk 0:00:09.2]} 54. Qe8+ {[%clk
0:00:05.7]} 54... Kg7 {[%clk 0:00:09.2]} 55. Qe7+ {[%clk 0:00:06.6]} 55... Kg6
{[%clk 0:00:09.7]} 56. Qe8+ {[%clk 0:00:06.9]} 56... Kh6 {[%clk 0:00:08.1]} 57.
Qf8+ {[%clk 0:00:07.4]} 57... Kg6 {[%clk 0:00:07.8]} 58. Qg8+ {[%clk 0:00:07]}
58... Kh6 {[%clk 0:00:07.6]} 59. Qf8+ {[%clk 0:00:07.1]} 59... Kh7 {[%clk
0:00:06]} 60. Qg8+ {[%clk 0:00:05]} 60... Kh6 {[%clk 0:00:05.9]} 61. Qf8+ {[%clk
0:00:05.8]} 1/2-1/2

[Event "Late-Titled-Tuesday-Blitz-September-26-2023"]
[Site "Chess.com"]
[Date "2023.09.26"]
[Round "6"]
[White "Gogolev_Artemy"]
[Black "Journey_to_GrandMaster_YT"]
[Result "0-1"]
[WhiteElo "2397"]
[BlackElo "2597"]
[TimeControl "180+1"]
[EndTime "15:05:28 PDT"]
[Termination "Journey_to_GrandMaster_YT won on time"]

1. c4 {[%clk 0:02:54.3]} 1... d6 {[%clk 0:03:00.9]} 2. g3 {[%clk 0:02:52.6]}
2... e5 {[%clk 0:03:01.8]} 3. Bg2 {[%clk 0:02:52.7]} 3... Nf6 {[%clk 0:03:02.3]}
4. Nc3 {[%clk 0:02:52.8]} 4... Be7 {[%clk 0:03:03.2]} 5. Nf3 {[%clk 0:02:53.3]}
5... O-O {[%clk 0:03:03.8]} 6. O-O {[%clk 0:02:54.1]} 6... c6 {[%clk 0:03:04.4]}
7. d4 {[%clk 0:02:53.6]} 7... e4 {[%clk 0:03:04.5]} 8. Ng5 {[%clk 0:02:52.6]}
8... d5 {[%clk 0:03:05.4]} 9. cxd5 {[%clk 0:02:52.7]} 9... cxd5 {[%clk
0:03:06.3]} 10. f3 {[%clk 0:02:53.3]} 10... h6 {[%clk 0:03:01.6]} 11. Nh3 {[%clk
0:02:52]} 11... exf3 {[%clk 0:03:00.7]} 12. exf3 {[%clk 0:02:50]} 12... Nbd7
{[%clk 0:02:54.6]} 13. Nf4 {[%clk 0:02:41.3]} 13... Nb6 {[%clk 0:02:54.7]} 14.
Nd3 {[%clk 0:02:42]} 14... Bf5 {[%clk 0:02:52]} 15. Ne5 {[%clk 0:02:37.9]} 15...
Rc8 {[%clk 0:02:51.9]} 16. Re1 {[%clk 0:02:37.7]} 16... Re8 {[%clk 0:02:51.8]}
17. Bf4 {[%clk 0:02:20.9]} 17... Nc4 {[%clk 0:02:46]} 18. Nxc4 {[%clk 0:02:21]}
18... Rxc4 {[%clk 0:02:45.7]} 19. Bf1 {[%clk 0:02:21.4]} 19... Rc8 {[%clk
0:02:44]} 20. Rc1 {[%clk 0:01:57.2]} 20... Qb6 {[%clk 0:02:41.8]} 21. Na4 {[%clk
0:01:16.5]} 21... Qa5 {[%clk 0:02:35]} 22. Qb3 {[%clk 0:01:15.6]} 22... Bb4
{[%clk 0:01:51.7]} 23. Rxe8+ {[%clk 0:01:01.8]} 23... Rxe8 {[%clk 0:01:44.1]}
24. Nc5 {[%clk 0:00:36.7]} 24... Bxc5 {[%clk 0:01:32.9]} 25. dxc5 {[%clk
0:00:37]} 25... Bc8 {[%clk 0:01:22.3]} 26. Qb5 {[%clk 0:00:28.7]} 26... Qxa2
{[%clk 0:01:11.6]} 27. Bd3 {[%clk 0:00:13.6]} 27... a6 {[%clk 0:00:54.8]} 28.
Qb4 {[%clk 0:00:13.5]} 28... a5 {[%clk 0:00:33.5]} 29. Qd4 {[%clk 0:00:10]}
29... Qb3 {[%clk 0:00:25.2]} 30. Bd6 {[%clk 0:00:02.1]} 30... Be6 {[%clk
0:00:24]} 31. Qc3 {[%clk 0:00:02.4]} 31... Qxc3 {[%clk 0:00:23.8]} 32. Rxc3
{[%clk 0:00:03.3]} 32... Nd7 {[%clk 0:00:23]} 33. Ra3 {[%clk 0:00:04]} 33... Ra8
{[%clk 0:00:22.5]} 34. Bb5 {[%clk 0:00:04.1]} 34... Nf6 {[%clk 0:00:13.4]} 35.
b4 {[%clk 0:00:03.9]} 35... Bd7 {[%clk 0:00:05.9]} 36. Bxd7 {[%clk 0:00:04.2]}
36... Nxd7 {[%clk 0:00:06.8]} 37. bxa5 {[%clk 0:00:04.1]} 37... Nb8 {[%clk
0:00:05.5]} 38. Bxb8 {[%clk 0:00:03.4]} 38... Rxb8 {[%clk 0:00:06.4]} 39. Rb3
{[%clk 0:00:03.4]} 39... Rc8 {[%clk 0:00:04.5]} 40. Rxb7 {[%clk 0:00:03.2]}
40... Rxc5 {[%clk 0:00:05.1]} 41. a6 {[%clk 0:00:04.1]} 41... Ra5 {[%clk
0:00:05.1]} 42. a7 {[%clk 0:00:04.7]} 42... Kh7 {[%clk 0:00:05.1]} 43. Rxf7
{[%clk 0:00:04.9]} 43... Kg6 {[%clk 0:00:05.5]} 44. Rd7 {[%clk 0:00:05.1]} 44...
Ra2 {[%clk 0:00:05.6]} 45. f4 {[%clk 0:00:04.3]} 45... Kf6 {[%clk 0:00:05]} 46.
Kf1 {[%clk 0:00:03.3]} 46... g6 {[%clk 0:00:05.3]} 47. Ke1 {[%clk 0:00:03.1]}
47... Ke6 {[%clk 0:00:05.7]} 48. Rh7 {[%clk 0:00:02.4]} 48... h5 {[%clk
0:00:05.7]} 49. Rg7 {[%clk 0:00:02.7]} 49... Kf6 {[%clk 0:00:05.6]} 50. Rb7
{[%clk 0:00:03.3]} 50... Kf5 {[%clk 0:00:05.8]} 51. Rf7+ {[%clk 0:00:02.7]}
51... Kg4 {[%clk 0:00:06]} 52. Rf6 {[%clk 0:00:01.1]} 52... Rxa7 {[%clk
0:00:05.3]} 53. Rxg6+ {[%clk 0:00:01.7]} 53... Kh3 {[%clk 0:00:05.6]} 54. Rg5
{[%clk 0:00:02.2]} 54... Rh7 {[%clk 0:00:05.4]} 55. Kf2 {[%clk 0:00:01.7]} 55...
Kxh2 {[%clk 0:00:05]} 56. Rxd5 {[%clk 0:00:02.1]} 56... Kh3 {[%clk 0:00:05.3]}
57. Rg5 {[%clk 0:00:02]} 57... Rh6 {[%clk 0:00:04.1]} 58. Kf3 {[%clk 0:00:01.4]}
58... Rh7 {[%clk 0:00:04.1]} 59. Re5 {[%clk 0:00:01.7]} 59... Rh6 {[%clk
0:00:03.1]} 60. f5 {[%clk 0:00:02.3]} 60... h4 {[%clk 0:00:03]} 61. gxh4 {[%clk
0:00:01.5]} 61... Kxh4 {[%clk 0:00:03.9]} 62. Kf4 {[%clk 0:00:01.4]} 62... Ra6
{[%clk 0:00:03.1]} 63. Re4 {[%clk 0:00:01.3]} 63... Kh5 {[%clk 0:00:03.3]} 0-1

[Event "Late-Titled-Tuesday-Blitz-September-26-2023"]
[Site "Chess.com"]
[Date "2023.09.26"]
[Round "6"]
[White "NotFischer"]
[Black "elcala"]
[Result "1-0"]
[WhiteElo "2248"]
[BlackElo "1719"]
[TimeControl "180+1"]
[EndTime "15:05:33 PDT"]
[Termination "NotFischer won on time"]

1. e4 {[%clk 0:03:00.9]} 1... d5 {[%clk 0:02:54.4]} 2. exd5 {[%clk 0:03:00.2]}
2... Qxd5 {[%clk 0:02:52.2]} 3. Nc3 {[%clk 0:02:59.8]} 3... Qd6 {[%clk
0:02:51.7]} 4. d4 {[%clk 0:02:56.6]} 4... Nf6 {[%clk 0:02:50.4]} 5. g3 {[%clk
0:02:53.3]} 5... a6 {[%clk 0:02:44.3]} 6. Bg2 {[%clk 0:02:44.9]} 6... Nc6 {[%clk
0:02:42]} 7. Nge2 {[%clk 0:02:38.5]} 7... Bf5 {[%clk 0:02:37.4]} 8. Bf4 {[%clk
0:02:32.9]} 8... Qd7 {[%clk 0:02:33.6]} 9. O-O {[%clk 0:02:29.1]} 9... e6 {[%clk
0:02:33.5]} 10. h3 {[%clk 0:02:08.4]} 10... O-O-O {[%clk 0:02:30.8]} 11. g4
{[%clk 0:02:07.2]} 11... Bg6 {[%clk 0:02:27.8]} 12. Be3 {[%clk 0:01:52.8]} 12...
h5 {[%clk 0:02:17]} 13. g5 {[%clk 0:01:52.3]} 13... Nd5 {[%clk 0:02:11.4]} 14.
Nxd5 {[%clk 0:01:51.8]} 14... exd5 {[%clk 0:02:12.3]} 15. c3 {[%clk 0:01:40.2]}
15... Be4 {[%clk 0:02:10.8]} 16. f3 {[%clk 0:01:28.8]} 16... Bf5 {[%clk
0:02:05.9]} 17. Kh2 {[%clk 0:01:28.4]} 17... Bd6+ {[%clk 0:02:04.5]} 18. Bf4
{[%clk 0:01:27.7]} 18... Bxf4+ {[%clk 0:01:53.9]} 19. Nxf4 {[%clk 0:01:27.2]}
19... Qd6 {[%clk 0:01:49.6]} 20. Qd2 {[%clk 0:01:27.2]} 20... Rhe8 {[%clk
0:01:42.2]} 21. Kh1 {[%clk 0:01:21.5]} 21... g6 {[%clk 0:01:34.1]} 22. Rae1
{[%clk 0:01:20.6]} 22... Qd7 {[%clk 0:01:30.9]} 23. h4 {[%clk 0:01:19.6]} 23...
Rxe1 {[%clk 0:01:24.6]} 24. Rxe1 {[%clk 0:01:19.4]} 24... Re8 {[%clk 0:01:25]}
25. Re3 {[%clk 0:01:11.2]} 25... Rxe3 {[%clk 0:01:17]} 26. Qxe3 {[%clk
0:01:12.1]} 26... Be6 {[%clk 0:01:12.2]} 27. Nd3 {[%clk 0:00:58.2]} 27... Ne7
{[%clk 0:01:06.7]} 28. Nc5 {[%clk 0:00:57.5]} 28... Qd6 {[%clk 0:00:58.5]} 29.
b4 {[%clk 0:00:56.5]} 29... Nf5 {[%clk 0:00:55.4]} 30. Qe5 {[%clk 0:00:40.7]}
30... Qxe5 {[%clk 0:00:49.6]} 31. dxe5 {[%clk 0:00:41.6]} 31... Nxh4 {[%clk
0:00:34.1]} 32. Nxe6 {[%clk 0:00:41.1]} 32... fxe6 {[%clk 0:00:32.5]} 33. Bh3
{[%clk 0:00:40.5]} 33... Kd7 {[%clk 0:00:26.3]} 34. f4 {[%clk 0:00:36.9]} 34...
Nf5 {[%clk 0:00:23.1]} 35. Kg1 {[%clk 0:00:34.6]} 35... Ne3 {[%clk 0:00:17.2]}
36. Kf2 {[%clk 0:00:15.9]} 36... Nd1+ {[%clk 0:00:16.8]} 37. Ke1 {[%clk
0:00:13.7]} 37... Nxc3 {[%clk 0:00:17.7]} 38. a3 {[%clk 0:00:12.6]} 38... Nb5
{[%clk 0:00:15.4]} 39. a4 {[%clk 0:00:11.9]} 39... Nc3 {[%clk 0:00:15.4]} 40. a5
{[%clk 0:00:12.5]} 40... b6 {[%clk 0:00:14.1]} 41. Bf1 {[%clk 0:00:11.1]} 41...
b5 {[%clk 0:00:10.7]} 42. Kd2 {[%clk 0:00:10.5]} 42... Ne4+ {[%clk 0:00:09.9]}
43. Ke3 {[%clk 0:00:10.4]} 43... Ng3 {[%clk 0:00:09.1]} 44. Bd3 {[%clk
0:00:09.9]} 44... Nf5+ {[%clk 0:00:07.4]} 45. Kd2 {[%clk 0:00:09.6]} 45... Ng3
{[%clk 0:00:07.1]} 46. Bxg6 {[%clk 0:00:09.2]} 46... h4 {[%clk 0:00:06.1]} 47.
Bd3 {[%clk 0:00:04.5]} 47... h3 {[%clk 0:00:05.9]} 48. g6 {[%clk 0:00:03.8]}
48... Nf5 {[%clk 0:00:03.9]} 49. Bxf5 {[%clk 0:00:01.9]} 49... exf5 {[%clk
0:00:04.8]} 50. g7 {[%clk 0:00:02.5]} 50... h2 {[%clk 0:00:04.5]} 51. g8=Q
{[%clk 0:00:03]} 51... h1=Q {[%clk 0:00:05.4]} 52. Qg7+ {[%clk 0:00:03.4]} 52...
Kc8 {[%clk 0:00:04.9]} 53. Qg8+ {[%clk 0:00:02.2]} 53... Kb7 {[%clk 0:00:04.4]}
54. Kd3 {[%clk 0:00:01.2]} 54... Qf3+ {[%clk 0:00:03.2]} 55. Kd2 {[%clk
0:00:01.2]} 55... Qf2+ {[%clk 0:00:02.9]} 56. Kd3 {[%clk 0:00:01.7]} 56... Qf3+
{[%clk 0:00:03.1]} 57. Kd2 {[%clk 0:00:02.6]} 57... Qxf4+ {[%clk 0:00:03.3]} 58.
Kd3 {[%clk 0:00:03.5]} 58... Qe4+ {[%clk 0:00:03.1]} 59. Kd2 {[%clk 0:00:04.4]}
59... Qd4+ {[%clk 0:00:03]} 60. Ke2 {[%clk 0:00:04.2]} 60... Qe4+ {[%clk
0:00:03.1]} 61. Kd2 {[%clk 0:00:04.8]} 61... Qf4+ {[%clk 0:00:03]} 62. Ke2
{[%clk 0:00:05.3]} 62... Qxe5+ {[%clk 0:00:03.2]} 63. Kd3 {[%clk 0:00:05.7]}
63... Qe4+ {[%clk 0:00:03.1]} 64. Kd2 {[%clk 0:00:06.2]} 64... Qxb4+ {[%clk
0:00:03.3]} 65. Ke3 {[%clk 0:00:06.2]} 65... Qe4+ {[%clk 0:00:03.1]} 66. Kd2
{[%clk 0:00:06.2]} 66... Qd4+ {[%clk 0:00:03]} 67. Ke2 {[%clk 0:00:06.2]} 67...
Qb2+ {[%clk 0:00:02.7]} 68. Kf3 {[%clk 0:00:06]} 68... Qc3+ {[%clk 0:00:01.6]}
69. Kf4 {[%clk 0:00:06.4]} 1-0

[Event "Late-Titled-Tuesday-Blitz-September-26-2023"]
[Site "Chess.com"]
[Date "2023.09.26"]
[Round "6"]
[White "DefiantChair"]
[Black "wild3000"]
[Result "1/2-1/2"]
[WhiteElo "2544"]
[BlackElo "2348"]
[TimeControl "180+1"]
[EndTime "15:05:37 PDT"]
[Termination "Game drawn - insufficient material"]

1. e4 {[%clk 0:02:55.9]} 1... c5 {[%clk 0:02:59.8]} 2. Nf3 {[%clk 0:02:55.6]}
2... e6 {[%clk 0:02:58.6]} 3. b3 {[%clk 0:02:47.8]} 3... d5 {[%clk 0:02:57.1]}
4. exd5 {[%clk 0:02:41.6]} 4... exd5 {[%clk 0:02:58]} 5. Bb5+ {[%clk 0:02:41.2]}
5... Bd7 {[%clk 0:02:54.7]} 6. Bxd7+ {[%clk 0:02:40.8]} 6... Nxd7 {[%clk
0:02:51.3]} 7. O-O {[%clk 0:02:41.4]} 7... Ngf6 {[%clk 0:02:50.3]} 8. Re1+
{[%clk 0:02:41.5]} 8... Be7 {[%clk 0:02:50.4]} 9. Qe2 {[%clk 0:02:41.8]} 9...
Kf8 {[%clk 0:02:37]} 10. Bb2 {[%clk 0:02:36.2]} 10... Bd6 {[%clk 0:02:35.7]} 11.
d4 {[%clk 0:02:36.1]} 11... Qc7 {[%clk 0:02:27.1]} 12. Nc3 {[%clk 0:02:35.1]}
12... a6 {[%clk 0:02:22.2]} 13. Ne5 {[%clk 0:02:28]} 13... cxd4 {[%clk
0:02:12.7]} 14. Nxd7+ {[%clk 0:02:24.7]} 14... Qxd7 {[%clk 0:02:05]} 15. Na4
{[%clk 0:02:25.2]} 15... Re8 {[%clk 0:01:51.1]} 16. Qf3 {[%clk 0:02:19.9]} 16...
Re4 {[%clk 0:01:43.5]} 17. Rxe4 {[%clk 0:01:30.4]} 17... dxe4 {[%clk 0:01:42.5]}
18. Qd1 {[%clk 0:01:30.5]} 18... Be5 {[%clk 0:01:33.2]} 19. Nb6 {[%clk
0:01:23.7]} 19... Bxh2+ {[%clk 0:00:49.4]} 20. Kxh2 {[%clk 0:01:02.6]} 20...
Qd6+ {[%clk 0:00:48.5]} 21. Kg1 {[%clk 0:01:02.2]} 21... Qxb6 {[%clk 0:00:48.7]}
22. Bxd4 {[%clk 0:01:00.9]} 22... Qc6 {[%clk 0:00:41.3]} 23. Qd2 {[%clk
0:00:56.5]} 23... h5 {[%clk 0:00:34.1]} 24. Re1 {[%clk 0:00:49.8]} 24... Kg8
{[%clk 0:00:33.2]} 25. Qg5 {[%clk 0:00:46.7]} 25... Rh6 {[%clk 0:00:30.4]} 26.
c4 {[%clk 0:00:40.4]} 26... h4 {[%clk 0:00:28.1]} 27. Re3 {[%clk 0:00:36]} 27...
Qe6 {[%clk 0:00:23.7]} 28. Bxf6 {[%clk 0:00:30.4]} 28... Rxf6 {[%clk 0:00:19.9]}
29. Qxh4 {[%clk 0:00:30.3]} 29... Rh6 {[%clk 0:00:20]} 30. Qxe4 {[%clk
0:00:28.3]} 30... Qf6 {[%clk 0:00:20.1]} 31. Qe5 {[%clk 0:00:21.7]} 31... Qh4
{[%clk 0:00:18.4]} 32. Qe8+ {[%clk 0:00:19.1]} 32... Kh7 {[%clk 0:00:18.3]} 33.
Qe4+ {[%clk 0:00:20]} 33... Qxe4 {[%clk 0:00:16.6]} 34. Rxe4 {[%clk 0:00:20.9]}
34... Rd6 {[%clk 0:00:16.4]} 35. Re2 {[%clk 0:00:20.3]} 35... Kg6 {[%clk
0:00:15.9]} 36. g3 {[%clk 0:00:20.5]} 36... b5 {[%clk 0:00:16.2]} 37. c5 {[%clk
0:00:20.2]} 37... Rd1+ {[%clk 0:00:15.6]} 38. Kg2 {[%clk 0:00:20]} 38... Rc1
{[%clk 0:00:14.7]} 39. b4 {[%clk 0:00:20.2]} 39... Rc4 {[%clk 0:00:14.9]} 40. a3
{[%clk 0:00:20.3]} 40... a5 {[%clk 0:00:14.8]} 41. Rb2 {[%clk 0:00:19.8]} 41...
axb4 {[%clk 0:00:15.1]} 42. axb4 {[%clk 0:00:20.7]} 42... Kf5 {[%clk 0:00:14.4]}
43. f4 {[%clk 0:00:20.9]} 43... Kg4 {[%clk 0:00:14.2]} 44. Rd2 {[%clk
0:00:20.4]} 44... Rc3 {[%clk 0:00:13.7]} 45. Kf2 {[%clk 0:00:19.4]} 45... Rf3+
{[%clk 0:00:12.9]} 46. Ke2 {[%clk 0:00:19.4]} 46... Rxg3 {[%clk 0:00:13.3]} 47.
Rc2 {[%clk 0:00:18.6]} 47... Kxf4 {[%clk 0:00:10.5]} 48. c6 {[%clk 0:00:18.6]}
48... Re3+ {[%clk 0:00:10.7]} 49. Kf2 {[%clk 0:00:17.9]} 49... Re8 {[%clk
0:00:10.4]} 50. Rc5 {[%clk 0:00:17.6]} 50... Rc8 {[%clk 0:00:10.1]} 51. Ke2
{[%clk 0:00:18.2]} 51... Ke4 {[%clk 0:00:10.1]} 52. c7 {[%clk 0:00:17.5]} 52...
f5 {[%clk 0:00:09.3]} 53. Kf2 {[%clk 0:00:17.7]} 53... g5 {[%clk 0:00:09.5]} 54.
Kg3 {[%clk 0:00:18]} 54... f4+ {[%clk 0:00:09.3]} 55. Kg4 {[%clk 0:00:18]} 55...
Ke3 {[%clk 0:00:08.7]} 56. Re5+ {[%clk 0:00:16.9]} 56... Kd4 {[%clk 0:00:08.5]}
57. Rc5 {[%clk 0:00:16.9]} 57... Ke3 {[%clk 0:00:08.7]} 58. Rc3+ {[%clk
0:00:15.1]} 58... Kd4 {[%clk 0:00:08.4]} 59. Rc1 {[%clk 0:00:15]} 59... Ke3
{[%clk 0:00:08.5]} 60. Rc5 {[%clk 0:00:14.1]} 60... Kd4 {[%clk 0:00:07.6]} 61.
Kf3 {[%clk 0:00:14.8]} 61... Kd3 {[%clk 0:00:05.8]} 62. Rc6 {[%clk 0:00:12.6]}
62... Kd4 {[%clk 0:00:05.7]} 63. Rc1 {[%clk 0:00:12.7]} 63... Kd3 {[%clk
0:00:05.1]} 64. Kg4 {[%clk 0:00:12.6]} 64... Kd2 {[%clk 0:00:04.2]} 65. Rc6
{[%clk 0:00:12.1]} 65... Ke3 {[%clk 0:00:05.1]} 66. Re6+ {[%clk 0:00:11.9]}
66... Kd4 {[%clk 0:00:05.1]} 67. Re7 {[%clk 0:00:12.2]} 67... Kc4 {[%clk
0:00:04.8]} 68. Kxg5 {[%clk 0:00:12.7]} 68... Kxb4 {[%clk 0:00:05.2]} 69. Kxf4
{[%clk 0:00:12.3]} 69... Kc5 {[%clk 0:00:05.9]} 70. Ke5 {[%clk 0:00:12.6]} 70...
Kc6 {[%clk 0:00:06]} 71. Kd4 {[%clk 0:00:12.9]} 71... Rxc7 {[%clk 0:00:06]} 72.
Rxc7+ {[%clk 0:00:13.8]} 72... Kxc7 {[%clk 0:00:06.9]} 73. Kc5 {[%clk
0:00:14.7]} 73... Kb7 {[%clk 0:00:07.4]} 74. Kxb5 {[%clk 0:00:15.2]} 1/2-1/2